Cogmind - Beta 17 @@@ ROGUE MODE // 2026.06.25 @ 13:11:48 Player: Scottariah Result: Destroyed by N1-QLZ(R) with Subdweller Machine Gun Performance ------------- Evolutions (0) 0 Regions Visited (2) 400 Robots Destroyed (46) 230 Value Destroyed (934) 934 Prototype IDs (17) 340 Alien Tech Used (0) 0 Bonus (6700) 6700 TOTAL SCORE: 8604 Bonus ------- Prayed to X0-1V1 5000 Major X0-1V1 Interference 1700 Cogmind --------- Core Integrity 0/350 Matter 150/150 Energy 200/200 System Corruption 0% Temperature Cool (0) Movement Rolling (130) Ox2 Location -10/Subcaves Parts ------- > --- POWER (2) -------- Subdweller Power Source > --- PROPULSION (1) --- Subdweller Monowheel > --- UTILITY (2) ------ High-capacity Storage Unit X0-1V1's Piety Tracker > --- WEAPON (2) ------- Maul (fused) Maul (fused) > --- INVENTORY (21) --- Light Treads Heat Sink Medium Matter Pod (100) Subdweller Optics Signal Interpreter Seismic Detector Makeshift Targeting Computer Hardened Light Armor Plating Scrap Shield Tower Shield Hacking Suite Tractor Beam Self-contained Transmogrifier Subdweller Laser Subdweller Laser Subdweller Beam Cannon Shotgun Barrage Gun Plasma Cutter Peak State ------------ > --- POWER ------------ Subdweller Power Source > --- PROPULSION ------- Subdweller Monowheel > --- UTILITY ---------- High-capacity Storage Unit X0-1V1's Piety Tracker > --- WEAPON ----------- Maul Maul Katana > --- INVENTORY -------- Light Treads Subdweller Monowheel Heat Sink Medium Matter Pod Subdweller Optics Signal Interpreter Seismic Detector Hardened Light Armor Plating Scrap Shield Hacking Suite Tractor Beam Subdweller Laser Subdweller Laser Subdweller Beam Cannon Assault Rifle Barrage Gun Plasma Cutter [Rating: 28] Favorites ----------- Power Ion Engine Engine Ion Engine Propulsion Light Treads Treads Light Treads Wheel Subdweller Monowheel Utility High-capacity Storage Unit Device X0-1V1's Piety Tracker Storage High-capacity Storage Unit Protection Hardened Light Armor Plating Weapon Maul Energy Gun Medium Laser Energy Cannon Advanced Beam Cannon Ballistic Gun Assault Rifle Ballistic Cannon Light Cannon Impact Weapon Maul Slashing Weapon Katana Build | -11 -10 -10 ------- Run | Yrd Mat Sub Slots Evolved . | . . . Power . | . . . Propulsion . | . . . Utility . | . . . Weapon . | . . . Parts Attached 31 | 8 14 9 Power 5 | 1 3 1 Engine 5 | 1 3 1 Core . | . . . Reactor . | . . . Propulsion 7 | 2 2 3 Treads 5 | 2 2 1 Leg . | . . . Wheel 2 | . . 2 Hover . | . . . Flight . | . . . Utility 8 | 3 4 1 Device 5 | 2 2 1 Storage 2 | 1 1 . Processor . | . . . Hackware . | . . . Protection 1 | . 1 . Artifact . | . . . Weapon 11 | 2 5 4 Energy Gun 1 | 1 . . Energy Cannon 1 | . 1 . Ballistic Gun 3 | 1 1 1 Ballistic Cannon 2 | . 2 . Launcher . | . . . Special Weapon . | . . . Impact Weapon 3 | . 1 2 Slashing Weapon 1 | . . 1 Piercing Weapon . | . . . Special Melee Weapon . | . . . Unidentified Prototypes 2 | . 2 . Parts Lost 7 | . 1 6 Power 1 | . . 1 Propulsion 2 | . . 2 Utility 1 | . . 1 Weapon 3 | . 1 2 Highest Loss Streak 4 | . 1 4 To Critical Strikes . | . . . Average Backups 15 | 3 13 18 Power 1 | . 1 . Propulsion 1 | 1 . 1 Utility 8 | . 7 10 Weapon 4 | . 3 5 Tool/Special . | . . . Unused Backups 34 | . 10 24 Power 1 | . . 1 Propulsion 2 | . 2 . Utility 15 | . 2 13 Weapon 14 | . 6 8 Tool/Special 2 | . . 2 Average Slot Usage (%) 98 | . 99 96 Engine 13 | . 14 13 Treads 24 | . 27 22 Wheel 1 | . . 2 Device 9 | . 3 13 Storage 14 | . 14 14 Protection 4 | . 10 . Energy Gun 1 | . 3 . Ballistic Gun 3 | . 8 . Ballistic Cannon 10 | . 10 10 Impact Weapon 11 | . 3 17 Peak Build Rating 28 | 7 23 28 Average Rating 17 | 6 10 23 On Entrance 10 | . 7 23 Avg Prop Armor Cover (%) 17 | . . 17 Naked Turns . | . . . Heaviest Build 57 | 13 57 54 Greatest Support 40 | 40 40 40 Greatest Overweight (x) 2 | 2 1 2 Average Overweight (x) . | . . 1 Largest Inventory Capacity 21 | 8 20 21 Average Capacity 17 | 7 15 20 Most Carried 21 | 7 20 21 Average Carried 16 | 3 13 19 Final Capacity 21 | 8 20 21 Final Carried 21 | 7 19 21 Class Distribution -------------------- 100% | Mutant Dominant Class ---------------- Mutant | -10/Materials Mutant | -10/Subcaves Resources | -11 -10 -10 ----------- Run | Yrd Mat Sub Matter Collected 978 | 408 334 236 Remotely 125 | 125 . . Salvage Created 1165 | 231 563 371 Parts 71 | 19 35 17 Haulers Intercepted 2 | . 2 . Recyclers Shooed 1 | . 1 . Parts Field Recycled . | . . . Retrieved Matter . | . . . Parts Self-Destructed 4 | . . 4 Prevented . | . . . Parts Restored . | . . . Kills | -11 -10 -10 ------- Run | Yrd Mat Sub Combat Hostiles Destroyed 29 | . 14 15 Melee 8 | . . 8 Guns 11 | . 11 . Cannons 4 | . 3 1 Classes Destroyed 9 | 3 5 1 Worker 3 | 2 1 . Tunneler 7 | 7 . . Hauler 2 | . 2 . Recycler 2 | 1 1 . Operator 1 | . 1 . Watcher 2 | . 2 . Swarmer 10 | . 6 4 Grunt 13 | . 8 5 Subdweller 6 | . . 6 Best Kill Streak 5 | 5 3 3 Combat Bots Only 3 | . 3 3 Max Kills in Single Turn 1 | 1 1 1 Gunslinging . | . . . Exploded . | . . . Melee 1 | . . 1 Uniques/NPCs Destroyed . | . . . Combat | -11 -10 -10 -------- Run | Yrd Mat Sub Hostile Shots Fired 216 | . 72 144 Missed 49 | . 16 33 Hits 167 | . 56 111 Projectile 167 | . 56 111 Critical Strikes 3 | . 1 2 Damage Taken 2074 | . 654 1420 Core 521 | . 68 453 Absorbed by Shields . | . . . Regen/Repaired (Parts) 117 | . 117 . Core Remaining (%) 100 | 100 . . Volleys Fired 86 | 21 57 8 Largest 2 | 2 2 1 Hottest 98 | 70 98 30 Shots Fired 159 | 40 109 10 Gun 121 | 40 77 4 Cannon 38 | . 32 6 Launcher . | . . . Special . | . . . Kinetic 115 | 21 84 10 Thermal 44 | 19 25 . Explosive . | . . . Electromagnetic . | . . . Robot Hit Streak 10 | 4 10 1 Robot Miss Streak 5 | 2 5 2 Penetration Max . | . . . Secondary Targets . | . . . Shots Hit Robots 128 | 21 59 48 Core Hits 49 | 11 29 9 Critical Kills 4 | . . 4 Critical Parts Destroyed 10 | . 1 9 Critical Strikes 17 | . 3 14 Burn 2 | . 2 . Smash 15 | . 1 14 Melee Attacks 188 | . 4 184 Impact 186 | . 4 182 Slashing 2 | . . 2 Piercing . | . . . Sneak Attacks 1 | . 1 . Combat Hostiles . | . . . Follow-up Attacks 3 | . . 3 Damage Inflicted 3102 | 289 937 1876 Guns 843 | 289 535 19 Cannons 301 | . 263 38 Explosions . | . . . Melee 1929 | . 117 1812 Ramming 29 | . 22 7 Kinetic 884 | 203 624 57 Thermal 260 | 86 174 . Explosive . | . . . Electromagnetic . | . . . Impact 1929 | . 117 1812 Slashing . | . . . Piercing . | . . . Highest Corruption 2 | . 1 2 Average Corruption 1 | . 1 1 Corruption Purged . | . . . Corruption Blocked . | . . . Effects 23 | . 8 15 Message Errors 5 | . 2 3 Matter Fused 3 | . 1 2 Heat Flow Errors 2 | . . 2 Energy Discharges 5 | . 1 4 Parts Rejected 1 | . 1 . Parts Fused 1 | . 1 . Data Loss (minor) 4 | . 1 3 Misfires 1 | . . 1 Alerts 1 | . 1 . Overload Shots . | . . . Overflow Damage 610 | . 95 515 Projectiles . | . . . Explosions . | . . . Melee 610 | . 95 515 Knockbacks 13 | . 5 8 Impact 8 | . . 8 Kinetic 5 | . 5 . Secondary . | . . . Self-Inflicted Damage 3 | . . 3 Shots . | . . . Rammed 5 | . 4 1 Targets Rammed 6 | . 5 1 Kicked . | . . . Crushed 1 | . 1 . Highest Temperature 197 | 36 180 197 Average Temperature 45 | 12 52 103 Received Heat Transfer 657 | . 297 360 Siege Activations . | . . . Martial Activations . | . . . Shielding Activations . | . . . Robots Disrupted . | . . . Combat Hostiles . | . . . Robots Corrupted 7 | . 1 6 Combat Hostiles 6 | . . 6 Parts Fried 13 | . 5 8 Impact Corruptions 24 | . 3 21 Robots Melted . | . . . Combat Hostiles . | . . . Parts Melted 1 | . 1 . Heat Transferred 925 | 259 666 . Parts Sabotaged . | . . . Parts Stolen . | . . . Parts Stripped . | . . . Power Chain Reactions . | . . . Alert | -11 -10 -10 ------- Run | Yrd Mat Sub Maximum Alert Level . | . . . Low Security (%) 100 | 100 100 . Level 1 . | . . . Level 2 . | . . . Level 3 . | . . . Level 4 . | . . . Level 5 . | . . . High Security . | . . . Max Security . | . . . Peak Influence 147 | 10 147 . Initial . | . . . Average 46 | 1 53 . Influence Increases 860 | 50 495 315 Destroy 0b10 Robot/C 460 | . 280 180 Destroy 0b10 Robot/NC 85 | 50 35 . Destroy Leader 68 | . 68 . Successful Hack 79 | . 79 . Disable Machine 15 | . 15 . Destroy Structure 3 | . 3 . Lose Combat Pursuer 150 | . 15 135 Influence Decreases 638 | 50 495 93 Time Decay 564 | 50 458 56 Lost Part 47 | . 10 37 Purge Threat 27 | . 27 . Squads Dispatched 3 | . 3 . Investigation 1 | . 1 . Extermination . | . . . Reinforcement 2 | . 2 . Assault . | . . . Garrison . | . . . Intercept . | . . . Searches Triggered . | . . . Construction Impeded . | . . . Haulers Reinforced . | . . . Active Scanning Responses . | . . . Cargo Convoy Interrupts . | . . . Stealth | -11 -10 -10 --------- Run | Yrd Mat Sub Distress Signals 2 | . 2 . Communications Jammed . | . . . Distress Signals . | . . . Times Spotted 53 | . 29 24 Peak Tracking Total 5 | . 5 5 Tactical Retreats 9 | . 1 8 Traps | -11 -10 -10 ------- Run | Yrd Mat Sub Traps Triggered 4 | . 2 2 Indirectly . | . . . Trap Hack Attempts . | . . . Triggered . | . . . Disarmed . | . . . Reprogrammed . | . . . Reused . | . . . Traps Extracted . | . . . Installed . | . . . Triggered . | . . . Machines | -11 -10 -10 ---------- Run | Yrd Mat Sub Machines Disabled 3 | . 2 1 Max in Single Turn 1 | . 1 1 Machines Repaired . | . . . Machines Dismantled . | . . . Machines Sabotaged . | . . . Overloaded Fab Kills . | . . . Hacking | -11 -10 -10 --------- Run | Yrd Mat Sub Machines Accessed 9 | . 8 1 Terminals 6 | . 6 . Fabricators . | . . . Repair Stations 1 | . 1 . Recycling Units 1 | . 1 . Scanalyzers . | . . . Garrison Access . | . . . Total Hacks 44 | . 35 9 Successful 34 | . 25 9 Failed 10 | . 10 . Catastrophic 1 | . 1 . Database Lockouts . | . . . Manual 32 | . 32 . Terminals 28 | . 28 . Fabricators . | . . . Repair Stations 4 | . 4 . Recycling Units 3 | . 3 . Scanalyzers . | . . . Garrison Access . | . . . Terminal Hacks 17 | . 8 9 Record 8 | . . 8 Robot Analysis 5 | . 5 . Prototype ID Bank 1 | . 1 . Unreport Threat 1 | . 1 . Locate Traps 1 | . 1 . Proto ID Catalog 1 | . . 1 Fabricator Hacks . | . . . Repair Station Hacks 4 | . 4 . Scan Component 2 | . 2 . Repair 2 | . 2 . Recycling Unit Hacks . | . . . Scanalyzer . | . . . Garrison Access Hacks . | . . . Unauthorized Hacks 13 | . 13 . Terminals 10 | . 10 . Botnet 5 | . 5 . Skim 5 | . 5 . Fabricators . | . . . Repair Stations . | . . . Recycling Units 3 | . 3 . Reject 1 | . 1 . Recyclers 1 | . 1 . Mask 1 | . 1 . Scanalyzers . | . . . Garrison Access . | . . . Data Cores Recovered . | . . . Used . | . . . Hacking Detections 6 | . 6 . Full Trace Events 1 | . 1 . Feedback Events . | . . . Feedback Blocked . | . . . Robot Schematics Acquired . | . . . Robots Built . | . . . Authchips . | . . . Time . | . . . Total Robot Build Rating . | . . . Part Schematics Acquired . | . . . Parts Built . | . . . Authchips . | . . . Time . | . . . Total Part Build Rating . | . . . Part Studies Acquired . | . . . Parts Repaired 2 | . 2 . Time 26 | . 26 . Parts Recycled . | . . . Recycled Matter . | . . . Retrieved Matter . | . . . Retrieved Components . | . . . Parts Scanalyzed . | . . . Part Schematics Acquired . | . . . Parts Damaged . | . . . Bothacking | -11 -10 -10 ------------ Run | Yrd Mat Sub Used RIF Installer . | . . . Robots Hacked . | . . . Non-combat . | . . . Combat . | . . . Robot Hacks Applied . | . . . Relay Couplers Released . | . . . Fabnet Peak Effective % . | . . . Robots Rewired . | . . . Allies Hacked . | . . . Hacks Repelled . | . . . Allies | -11 -10 -10 -------- Run | Yrd Mat Sub Total Allies . | . . . Largest Group . | . . . Highest-Rated Group . | . . . Highest-Rated Ally . | . . . Total Orders . | . . . Ally Attacks . | . . . Total Damage . | . . . Kills . | . . . Allies Corrupted . | . . . Allies Melted . | . . . X0-1V1 Amusement Gains 15 | . 5 10 Good Acts 15 | . . 15 Bad Acts 17 | . 1 16 Intel | -11 -10 -10 ------- Run | Yrd Mat Sub Active Infowar (turns) 200 | 31 169 . Seismic 200 | 31 169 . Robot Analysis Total 5 | . 5 . Derelict Logs Recovered 1 | . . 1 Drone Launches . | . . . Drone Recoveries . | . . . Exploration | -11 -10 -10 ------------- Run | Yrd Mat Sub Turns Passed 4621 | 274 1778 2569 Spaces Moved 1794 | 124 733 937 Core 6 | 6 . . Treads 1482 | 118 733 631 Legs . | . . . Wheels 306 | . . 306 Hover . | . . . Flight . | . . . Fastest Speed 50 | 50 160 130 Average Speed 202 | 157 203 208 Slowest Speed 250 | 160 240 250 Overloaded Moves . | . . . Propulsion Burnouts . | . . . Robots Hopped . | . . . Potential Cave-ins . | . . . Cave-ins Triggered . | . . . Exploration Rate (%) 49 | 6 97 44 Regions Visited 2 Branch Regions 1 Pre-discovered Areas 1 | . . 1 Known Exits Taken . | . . . Unknown Exits Taken 2 | 1 1 . Scrap Searched 4 | . . 4 Spaces Dug 55 | . 2 53 Terrain Destroyed 55 | . 2 53 Melee 55 | . 2 53 Projectile . | . . . AOE . | . . . Terrain Rammed . | . . . Walls Destroyed . | . . . Machines Disabled . | . . . Actions | -11 -10 -10 --------- Run | Yrd Mat Sub Total 2257 | 159 906 1192 Wait 63 | . 40 23 Move 1792 | 123 732 937 Hop . | . . . Pick Up 53 | 6 28 19 Fast Attach 14 | 8 5 1 Attach 10 | . 1 9 Detach 2 | 1 . 1 Swap 14 | . 11 3 Drop 35 | . 23 12 Fire 86 | 21 57 8 Melee 182 | . 4 178 Ram 1 | . . 1 Kick . | . . . Crush 5 | . 5 . Escape Stasis . | . . . Rewire . | . . . Trap . | . . . Miscellaneous . | . . . Route ------- -11/Scrapyard -10/Materials (discovered 6 exits: [*Mat x3] / [*Min x2] / *Sub) -10/Subcaves (discovered 3 exits: [*Mat x2] / Rec) History --------- Turn | Location | Event 2 | -11/Scrapyard | Met Revision 17 26 | -11/Scrapyard | Discovered new exit (range 16) 275 | -11/Scrapyard | Entered Materials 314 | -10/Materials | Build established: Mutant 609 | -10/Materials | Discovered new exit (range 13) 788 | -10/Materials | Discovered new exit (range 15) 984 | -10/Materials | Discovered new exit (range 14) 1138 | -10/Materials | Discovered new exit (range 3) 1294 | -10/Materials | Discovered new exit (range 12) 1577 | -10/Materials | Repaired Lgt. Treads 1591 | -10/Materials | Repaired Assault Rifle 2033 | -10/Materials | Discovered new exit (range 7) 2048 | -10/Materials | Prayed at D.C.S.S. Altar Unit 2049 | -10/Materials | X0-1V1 announced a LAN party 2053 | -10/Materials | Entered Subcaves 2110 | -10/Subcaves | A swath of the cavern ceiling suddenly collapsed 2142 | -10/Subcaves | Discovered new exit (range 11) 2152 | -10/Subcaves | Energy generation permanently improved by X0-1V1 (+10; -100 max core) 2245 | -10/Subcaves | Learned Materials emergency access door positions 2390 | -10/Subcaves | X0-1V1 activates XOMVISION 2424 | -10/Subcaves | Learned location of Zion (-7) 2424 | -10/Subcaves | Met a Zionite searching for "candidates" 3029 | -10/Subcaves | A swath of the cavern ceiling suddenly collapsed 3135 | -10/Subcaves | X0-1V1 activates XOMVISION 3401 | -10/Subcaves | Discovered new exit (range 7) 3546 | -10/Subcaves | Shifting Twisted Machinery released Enh. Flamer 3913 | -10/Subcaves | Identified exit to Recycling 3913 | -10/Subcaves | X0-1V1 revealed exit location to -9/Recycling 4025 | -10/Subcaves | X0-1V1 sent hostile S-10 Pest (x3) 4031 | -10/Subcaves | Core integrity fell below 50% 4069 | -10/Subcaves | Core integrity fell below 20% 4073 | -10/Subcaves | Core integrity permanently improved by X0-1V1 (+300) 4084 | -10/Subcaves | Inventory capacity permanently improved by X0-1V1 (+1; -100 max core) 4091 | -10/Subcaves | Lost 4 parts (1p2n1w) 4102 | -10/Subcaves | X0-1V1 mutated your Propulsion slot to Weapon slot 4116 | -10/Subcaves | X0-1V1 sent hostile G-34 Mercenary (x5) 4440 | -10/Subcaves | X0-1V1 activates XOMVISION 4477 | -10/Subcaves | X0-1V1 mutated your Weapon slot to Power slot 4485 | -10/Subcaves | X0-1V1 sent hostile S-10 Pest (x3) 4530 | -10/Subcaves | Visited 4L-MR0's lab 4543 | -10/Subcaves | Found Prototype Device 4547 | -10/Subcaves | Found Tower Shield 4622 | -10/Subcaves | Destroyed by N1-QLZ(R) with Subdweller Machine Gun Last Messages --------------- come in here given their fear of my usual visitors." 04538_ Testing Chamber breached. 04539_ 4L-MR0 mumbles: "Who knows where that last prototype ended up, probably tossed aside somewhere as if it were useless junk..." 04543_ Acquired Prototype Device. 04547_ Subatomizers dissect the Broken Sub. Monowheel. 04547_ Acquired Tower Shield. 04548_ 4L-MR0: "Uhh... I didn't see nothing, but you'd better hope DW-4LL doesn't find out you took that." 04557_ Acquired 10 matter. 04561_ Dropped Assault Rifle. 04561_ Acquired Shotgun. 04602_ X0-1V1 smiles upon you. (Received Mak. Targeting Computer) 04609_ N1-QLZ(R) suffers critical hit (Smash). 04609_ N1-QLZ(R) knocked back. 04612_ 4D-3N0(R) suffers critical hit (Smash). 04612_ 4D-3N0(R) destroyed. 04615_ N1-QLZ(R) affixes Scrap Shield Fragment to Scrap Shield. 04616_ N1-QLZ(R) knocked back. 04622_ X0-1V1 cackles wildly! Map ----- +----------------------------------------------------+ | ?????????????????????????????????????????????? | | ?????????????????????????????????????????????? | | ?????????????????????????????????????????????? | | ?????????????????????????????????????????????? | | ?????????????????????????????????????????????? | | ?????????????????????????????????????????????? | | ?????????????????????????????????????????????? | | ?????????????????????????????????????????????? | | ?????????????????????????????????????????????? | | ???????????????? ????????????????????????????? | | ??????????????? ????????????????????????????? | | ???????????????? ???????????????????????????? | | ???????????????? ???????????????????????????? | | ????????????????? ??????????????????????????? | | ?????????????????? ?????????????????????????? | | ?????????????????## ?????????????????????????? | | ?????????????????? ????????????????????????? | | ??????????????????# ???????????????????????? | | ??????????????????# ???????????????????????? | | ?????????????????#? ??????????????????????? | | ?????????????????# #?????????????????????? | | ??????????????????? # ####?????????????????? | | ????????????????????? #?????????????????? | | ??????????????????????? R ##????????????????? | | ????????????????????????#/ #????????????????? | | ??????????????????#?????#@ ##????????????????? | | ?????????????????## ???##%! #????????????????? | | ?????????????????# ??# ! #????????????????? | | ??????????????????# ?## ##????????????????? | | ??????????????????# ## #????????????????? | | ??????????????????# ####??????????????? | | ??????????############ ##?????????????? | | ?????????##"""" " #### #?????????????? | | ?????????# " """""### #?????????????? | | ?????????#""""""" " ## #?????????????? | | ?????????#""" % % ## ## #?????????????? | | ?????????### "[## # # ##?????????????? | | ??????????###+##### ## ##?????????????? | | ??????????#" "#?# #" #?????????????? | | ??????????#" "#?# ##?????????????? | | ??????????# =""#?# #??????????????? | | ??????????# X"#?# # ### #??????????????? | | ??????????# ""#?#####< #?###??????????????? | | ??????????# #""#?????# ##??????????????????? | | ??????????# #""#?????## #???????????????????? | | ??????????######??????# ##??????????????????? | | ###???????????????????# #??????????????????? | | #??????????????###??# ##?????????????????? | | ?????????????## #??# #?????????????????? | | ?????????????## #??## ##?????????????????? | +----------------------------------------------------+ Best States ------------- Heat Dissipation 35 Energy Generation 25 Energy Capacity 250 Matter Stores 300 Matter Capacity 300 Sight Range 19 Terrain Scan Density 10 Armor Coverage 150 Evasion (%) 40 Recoil Reduction 2 Item Schematics ----------------- None Robot Schematics ------------------ None Fabricated ------------ Nothing Repaired ---------- Lgt. Treads | 46% | -10/Materials Assault Rifle | 58% | -10/Materials Studied --------- None Alien Tech Used ----------------- None Achievements -------------- None Challenges ------------ None Game ------ Seed UltimateSixLaser Manual? 0 Play Time 00:28:59 Cumulative 120.7 hours Start 2026.06.25 @ 12:19:31 End 2026.06.25 @ 13:11:48 Sessions 1 Manual Loads 0 Difficulty Rogue Special Mode None Game No. 146 Rogue 146 Adventurer 0 Explorer 0 Win Type - Total 0 Types 0/0/0/0/0/0/0/0/0/0 Lore% 53 Gallery% 51 Achievement% 39 Wizard Run 0 Options --------- Layout 0 ASCII 0 Keyboard 0 Movement Arrows Keybinds 1 Fullscreen 2 Font 24/X11 Map View 76x50 Zoom Use 43% Tactical HUD 1 Map Filters NONE Filters NONE Steam 1 RUN: 8d07d69e-de4a-4cf9-a611-c15d1c038706